[Event "FIDE Women GP Shimkent 2024"]
[Site "Shimkent"]
[Date "2024.10.30"]
[Round "1.1"]
[White "Lagno, Kateryna"]
[Black "Goryachkina, Aleksandra"]
[Result "1/2-1/2"]
[ECO "C54"]
[WhiteElo "2527"]
[BlackElo "2533"]
[Annotator "TA"]
[PlyCount "87"]
[EventDate "2024.10.11"]
[EventType "tourn"]
[EventCountry "KAZ"]
[SourceTitle "playchess.com"]
[Source "ChessBase"]
[SourceQuality "1"]
[TimeControl "40/5400+30:1800+30"]

{[%evp 23,87,49,52,33,53,44,25,34,44,41,60,32,50,25,33,0,13,-26,30,19,110,77,170,178,308,273,277,284,299,290,292,312,286,287,428,428,498,504,683,52,39,50,50,50,43,50,71,68,105,113,108,112,185,137,139,8,20,0,0,0,0,0,0,0,0,0]} 1. e4 {[%emt 0:00:03]} e5 {[%emt 0:00:23]} 2. Nf3 {[%emt 0:00:08]} Nc6 {[%emt 0:00:13]} 3. Bc4 {[%emt 0:00:18]} Bc5 {[%emt 0:00:29]} 4. c3 {[%emt 0:00:17]} Nf6 {[%emt 0:00:49]} 5. d3 {[%emt 0:00:12]} d6 {[%emt 0:03:21]} 6. h3 {[%emt 0:00:48]} a5 {[%emt 0:05:16] C54: Giuoco Piano: 4 c3 Nf6, main lines with 5 d4 and 5 d3.} 7. Nbd2 {[%emt 0:01:05]} O-O {[%emt 0:02:35]} 8. O-O {[%emt 0:00:06]} Ba7 {[%emt 0:05:00]} 9. Re1 {[%emt 0:03:56]} Nh5 $146 {[%emt 0:04:35]} ({Predecessor:} 9... Be6 10. Bb3 Bxb3 11. Qxb3 a4 12. Qc2 h6 13. Nf1 Re8 14. Ng3 d5 15. Bd2 Bc5 {½-½ Radjabov,T (2704)-Tomashevsky,E (2681) Moscow Stars Rapid 2024 (1)}) 10. Nf1 {[%emt 0:02:13]} Qf6 {[%emt 0:03:30]} 11. Ne3 {[%emt 0:12:14]} Bxe3 {[%emt 0:02:57]} 12. Bxe3 {[%emt 0:08:12]} Nf4 {[%emt 0:00:42]} 13. d4 {[%emt 0:16:52]} g5 {[%emt 0:04:25]} 14. Nh2 {[%emt 0:02:15]} Qg6 {[%emt 0:03:29]} 15. f3 {[%emt 0:15:40]} Kh8 {[%emt 0:04:01]} 16. Qd2 {[%emt 0:01:48]} f6 {[%emt 0:12:05]} 17. Rac1 {[%emt 0:00:28]} Ne7 {[%emt 0:05:50]} 18. b4 {[%emt 0:03:59]} h5 {[%emt 0:01:18]} 19. Bf1 {[%emt 0:07:07]} Rg8 {[%emt 0:06:33]} 20. bxa5 {[%emt 0:04:53]} Qh6 {[%emt 0:03:58]} ({Better is} 20... Nc6) 21. Kh1 $11 {[%emt 0:06:05]} Rg6 {[%emt 0:06:00]} (21... Qg6 $11) 22. c4 {[%emt 0:00:35]} Qg7 {[%emt 0:01:10]} (22... exd4 $16 {was worth a try.} 23. Bxd4 Nc6) 23. c5 $18 {[%emt 0:04:36]} g4 {[%emt 0:05:17]} (23... dxc5 $142 24. d5 (24. dxc5 Nc6 $14) (24. Rxc5 Ne6 $18) 24... b6) 24. hxg4 $18 {[%emt 0:00:11]} (24. dxe5 dxe5 25. fxg4 hxg4 $16) 24... hxg4 {[%emt 0:00:13]} 25. fxg4 {[%emt 0:00:10]} Bxg4 {[%emt 0:01:59]} 26. Bxf4 {[%emt 0:00:37]} exf4 {[%emt 0:00:11]} 27. cxd6 {[%emt 0:00:17]} (27. Qxf4 Qh6 28. Qxh6+ Rxh6 29. cxd6 cxd6) 27... cxd6 {[%emt 0:01:25]} 28. Qxf4 {[%emt 0:00:50]} Rxa5 {[%emt 0:08:39]} (28... Ng8 $142 29. a6 (29. Qxd6 Qh6 $18) 29... bxa6) 29. Rc7 $18 {[%emt 0:01:31]} (29. Qxd6 Ng8 30. Nxg4 Rxg4 31. Qh2+ Qh7 32. Qxh7+ Kxh7 $18) 29... Bh3 {[%emt 0:03:14]} 30. Re2 {[%emt 0:04:00]} (30. gxh3 $2 Rg1#) (30. Qxd6 Rxg2 31. Be2 (31. Qxe7 $2 Rg1#) (31. Qd8+ Kh7) 31... Re5 32. Qd8+ (32. dxe5 $2 Rxh2+ 33. Kxh2 Qg2#) 32... Kh7 $11) 30... Rag5 {[%emt 0:01:48]} 31. Qh4+ $2 {[%emt 0:02:02]} (31. gxh3 $2 Rg1#) (31. Qxd6 $18 Nc8 32. Rxg7 Nxd6 33. Rxg6 Rxg6 34. gxh3) 31... Rh6 $14 {[%emt 0:01:08]} 32. Rxe7 {[%emt 0:00:44]} Rxh4 {[%emt 0:00:30]} 33. Rxg7 {[%emt 0:00:04]} Bxg2+ {[%emt 0:00:40]} 34. Bxg2 {[%emt 0:00:21]} Rxg7 {[%emt 0:00:36]} 35. Kg1 {[%emt 0:00:46]} d5 {[%emt 0:01:20]} 36. exd5 {[%emt 0:00:26]} Rxd4 {[%emt 0:00:11]} 37. Kf2 {[%emt 0:01:00]} b5 {[%emt 0:01:11]} (37... Kg8 $16 {keeps fighting.} 38. Rc2 Rd7) 38. Rb2 {[%emt 0:01:13]} (38. Nf1 $18) 38... Ra7 {[%emt 0:00:28]} 39. Nf1 {[%emt 0:00:42]} ({Don't play} 39. Rxb5 $6 Rd2+ 40. Kf3 Ra3+ 41. Rb3 Raxa2 $11 (41... Rxb3+ 42. axb3 Kg7 43. Nf1 $16)) (39. Ke3 $1 $16 {[%cal Re3d4]} Raa4 40. Nf1 (40. Rxb5 Rdc4 $18)) 39... Rda4 $11 {[%emt 0:00:19]} 40. Rxb5 {[%emt 0:00:35]} Rxa2+ {[%emt 0:00:11]} 41. Kf3 {[%emt 0:30:34]} R7a3+ {[%emt 0:31:02]} 42. Ne3 {[%emt 0:00:05]} Rxg2 $1 {[%emt 0:01:24]} 43. Kxg2 {[%emt 0:00:16]} Rxe3 {[%emt 0:00:02]} 44. Kf2 {[%emt 0:00:47]} 1/2-1/2

[Event "FIDE Women GP Shimkent 2024"]
[Site "Shimkent"]
[Date "2024.10.30"]
[Round "1.2"]
[White "Divya Deshmukh"]
[Black "Koneru, Humpy"]
[Result "1/2-1/2"]
[ECO "C45"]
[WhiteElo "2501"]
[BlackElo "2530"]
[Annotator "TA"]
[PlyCount "82"]
[EventDate "2024.10.11"]
[EventType "tourn"]
[EventCountry "KAZ"]
[SourceTitle "playchess.com"]
[Source "ChessBase"]
[SourceQuality "1"]
[TimeControl "40/5400+30:1800+30"]

{[%evp 14,82,32,27,27,0,0,0,0,0,0,0,15,2,0,0,0,0,0,-6,0,1,11,0,0,0,0,0,0,0,0,0,0,0,0,0,6,0,6,0,0,0,0,0,0,0,0,0,0,0,0,0,0,0,0,-10,0,0,0,0,0,0,0,0,0,0,0,0,0,0,0]} 1. e4 {[%emt 0:00:09]} e5 {[%emt 0:00:10]} 2. Nf3 {[%emt 0:00:15]} Nc6 {[%emt 0:00:15]} 3. d4 {[%emt 0:00:22]} exd4 {[%emt 0:01:02]} 4. Nxd4 {[%emt 0:00:14]} Bc5 {[%emt 0:00:17]} 5. Nb3 {[%emt 0:00:17]} Bb6 {[%emt 0:00:10]} 6. Nc3 {[%emt 0:00:22]} Qf6 {[%emt 0:00:54]} 7. Qe2 {[%emt 0:00:34]} Nge7 {[%emt 0:01:03]} 8. h4 {[%emt 0:00:26]} d6 {[%emt 0:04:09]} 9. Bg5 {[%emt 0:00:45]} Qe6 {[%emt 0:06:49] The position is equal.} 10. O-O-O {[%emt 0:01:22]} Bd7 {[%emt 0:03:33]} 11. g3 {[%emt 0:13:00]} O-O-O {[%emt 0:09:26]} 12. Bh3 {[%emt 0:13:56]} Qg6 {[%emt 0:01:14]} 13. Bxd7+ {[%emt 0:27:19]} Rxd7 {[%emt 0:00:20]} 14. f4 {[%emt 0:00:18][%cal Bf2f4,Bf4f5][%mdl 32] [#] Strongly threatening f5.} f6 {[%emt 0:08:06]} 15. f5 {[%emt 0:01:17]} Qf7 {[%emt 0:00:23]} 16. Bf4 {[%emt 0:00:03]} d5 {[%emt 0:10:17]} 17. Na4 {[%emt 0:03:37] Nbc5 would now be deadly.} Rdd8 {[%emt 0:01:55]} 18. Kb1 {[%emt 0:09:39]} dxe4 {[%emt 0:07:57]} 19. Qxe4 {[%emt 0:00:23]} Nd5 {[%emt 0:03:48]} 20. Nbc5 {[%emt 0:03:16] [#] Ne6 is the strong threat.} Nxf4 {[%emt 0:01:52]} 21. Qxf4 {[%emt 0:01:17]} Rxd1+ {[%emt 0:05:10]} 22. Rxd1 {[%emt 0:00:02]} Rd8 {[%emt 0:00:24] Dodges Rd7} 23. Rxd8+ {[%emt 0:04:13]} Nxd8 {[%emt 0:00:06]} 24. Qe4 {[%emt 0:00:31]} Qf8 {[%emt 0:07:42] Black is weak on the light squares} 25. b4 {[%emt 0:05:00]} c6 {[%emt 0:05:08]} 26. Nxb6+ {[%emt 0:05:56]} axb6 $11 {[%emt 0:00:07][%mdl 4096] Endgame. KQN-KQN} 27. Na4 {[%emt 0:00:09]} b5 {[%emt 0:03:52]} 28. Nc5 {[%emt 0:00:06]} Qd6 {[%emt 0:03:32]} 29. g4 {[%emt 0:02:07]} b6 {[%emt 0:00:45]} 30. Nd3 {[%emt 0:00:10]} Kd7 {[%emt 0:01:15]} 31. Qe3 {[%emt 0:02:36]} Kc7 {[%emt 0:03:28]} 32. Qe8 {[%emt 0:00:14]} Qd7 {[%emt 0:00:50]} 33. Qe3 {[%emt 0:04:11]} Nf7 {[%emt 0:01:49]} 34. Kc1 {[%emt 0:00:08]} Nd6 {[%emt 0:02:31][%cal Oh7h5]} 35. Nf4 {[%emt 0:02:00]} Nc4 {[%emt 0:01:07]} 36. Ne6+ {[%emt 0:00:20]} Kb7 {[%emt 0:02:47]} 37. Qd3 {[%emt 0:00:06]} Qxd3 {[%emt 0:01:38]} 38. cxd3 {[%emt 0:00:01]} Ne3 {[%emt 0:00:10]} 39. Nxg7 {[%emt 0:01:35] Threatens to win with g5.} Nxg4 {[%emt 0:00:07]} 40. Kd2 {[%emt 0:01:22]} c5 {[%emt 0:03:23]} 41. bxc5 {[%emt 0:11:15]} bxc5 {[%emt 0:00:06] An even fight not without its subleties.   Weighted Error Value: White=0.03 (flawless) /Black=0.01 (flawless) .  Inaccurate:     	White=1     	---        OK:         	White=10    	Black=21     Best:        	---       	Black=1} 1/2-1/2

[Event "FIDE Women GP Shimkent 2024"]
[Site "Shimkent"]
[Date "2024.10.30"]
[Round "1.3"]
[White "Tan, Zhongyi"]
[Black "Paehtz, Elisabeth"]
[Result "1-0"]
[ECO "B50"]
[WhiteElo "2551"]
[BlackElo "2458"]
[Annotator "TA"]
[PlyCount "213"]
[EventDate "2024.10.11"]
[EventType "tourn"]
[EventCountry "KAZ"]
[SourceTitle "playchess.com"]
[Source "ChessBase"]
[SourceQuality "1"]
[TimeControl "40/5400+30:1800+30"]

{[%evp 9,213,0,-10,-11,52,-4,9,31,32,2,4,-56,-55,-30,-16,-18,-18,-46,-8,0,29,25,33,3,23,3,25,8,3,0,0,0,22,-17,0,0,0,0,0,-20,-23,-11,-24,-35,-32,-36,-33,-45,-40,-38,0,0,10,-48,43,43,82,-104,56,49,83,83,72,62,46,61,127,66,80,59,59,59,59,59,59,59,59,59,59,59,59,59,59,59,59,59,59,59,145,69,59,59,59,59,59,59,59,59,59,59,59,59,59,59,61,0,0,0,27,0,90,0,0,-41,0,0,0,0,6,0,0,0,0,0,79,59,198,218,200,138,129,77,415,392,482,375,691,724,6685,6685,6683,6683,6284,6368,6344,6344,6308,6118,5906,5886,6271,6694,6421,6976,6657,6666,7295,7295,7156,7243,7119,7119,7119,7119,7295,7295,29959,29960,29965,29966,29963,29962,14792,7109,7119,7119,29972,29973,29975,29976,29965,29978,29976,29977,29978,29979,29981,29982,29982,29983,29983,29984,29984,29985,29983,29986,29987,29988,29988,29989,29989,29990,29990,29991,29993,29994]} 1. e4 {[%emt 0:00:04]} c5 {[%emt 0:00:03]} 2. Nf3 {[%emt 0:00:07]} d6 {[%emt 0:00:03]} 3. c3 {[%emt 0:00:09]} Nf6 {[%emt 0:00:18]} 4. Be2 {[%emt 0:00:18]} Bd7 {[%emt 0:00:16]} 5. d3 {[%emt 0:02:36]} Nc6 {[%emt 0:03:09]} 6. O-O {[%emt 0:00:17]} g6 {[%emt 0:00:51] Fout (0.6)} ({Zwart kan het beste.} 6... e5 $11) 7. Nbd2 {[%emt 0:02:25]} ({Wit zou moeten spelen} 7. Bg5 $14) 7... Bg7 $11 {[%emt 0:00:45] OK} 8. d4 {[%emt 0:01:44] De stelling is in evenwicht.} cxd4 {[%emt 0:00:57]} 9. cxd4 {[%emt 0:00:23] Onnauwkeurig} O-O {[%emt 0:01:15]} 10. h3 {[%emt 0:07:39]} (10. Re1 $11) 10... Rc8 $15 {[%emt 0:06:53]} 11. a3 {[%emt 0:00:19]} Qb6 {[%emt 0:16:15][%cal Rc6d4]} 12. Nc4 {[%emt 0:05:20] Beste (Gemakkelijk)} Qc7 {[%emt 0:00:04]} 13. d5 {[%emt 0:05:34]} Na5 {[%emt 0:01:04]} 14. Ncd2 {[%emt 0:05:55]} Nh5 {[%emt 0:02:07]} 15. Re1 {[%emt 0:05:20]} b5 {[%emt 0:24:32]} 16. Nb3 {[%emt 0:02:40]} Nxb3 {[%emt 0:00:11]} 17. Qxb3 {[%emt 0:00:05][%cal Oc1g5]} Qc2 {[%emt 0:01:20]} 18. Qxc2 {[%emt 0:00:09]} Rxc2 {[%emt 0:00:04]} 19. Rb1 {[%emt 0:00:47]} Rc7 {[%emt 0:07:08]} 20. Bd3 {[%emt 0:01:08]} a6 {[%emt 0:10:22]} 21. Bg5 {[%emt 0:03:30]} Nf6 {[%emt 0:00:57]} 22. Rbd1 {[%emt 0:08:10]} Rfc8 {[%emt 0:04:59]} 23. Bb1 {[%emt 0:06:23]} h6 {[%emt 0:03:07]} 24. Be3 {[%emt 0:03:27]} Be8 {[%emt 0:05:51]} 25. Bb6 {[%emt 0:04:46]} Rb7 {[%emt 0:00:14]} 26. Ba5 {[%emt 0:05:05]} Nd7 {[%emt 0:00:08]} 27. Nd4 {[%emt 0:02:28]} Nc5 {[%emt 0:01:47]} 28. Ba2 $1 {[%emt 0:00:10] Sterk} Na4 {[%emt 0:01:01]} 29. Re2 {[%emt 0:00:23]} Nb6 {[%emt 0:03:14] Fout (0.5)} (29... g5 $15 {is aan te bevelen.}) 30. b3 $11 {[%emt 0:01:04]} Nd7 {[%emt 0:01:38]} 31. f4 {[%emt 0:02:51]} ({Beter is} 31. Ree1 $11) 31... Nf6 {[%emt 0:02:24] Fout (0.9)} ({Zwart doet er goed aan.} 31... Bxd4+ $15 32. Rxd4 Rc1+ 33. Kf2 Rb8) 32. g4 $14 {[%emt 0:02:27] Beste} Bd7 {[%emt 0:00:54]} 33. b4 $2 {[%emt 0:05:31] [#] Fout (1.9)} (33. Kg2 $16 {en de toekomst blijft veelbelovend.}) 33... Nxg4 $2 {[%emt 0:01:20] Fout (1.6)} 34. Nc6 $1 {[%emt 0:00:17]} (34. hxg4 Bxg4 35. Kf1 Rc3 $17 (35... Bxe2+ 36. Nxe2 Rc2 37. Bb1 $17)) 34... Kf8 {[%emt 0:00:49]} 35. hxg4 {[%emt 0:04:26]} Bxg4 {[%emt 0:00:03] [#]} 36. Kf2 {[%emt 0:00:33][%cal Bg1f2,Bf2e2,Be2d3][%mdl 32] EV=10.02. Goes to b5 (dbg))} Bxe2 {[%emt 0:00:14]} (36... h5 37. Bb3) 37. Kxe2 {[%emt 0:00:05]} g5 {[%emt 0:01:29] Fout (0.7)} (37... e6 $14) 38. fxg5 $1 $16 {[%emt 0:02:41]} hxg5 {[%emt 0:00:03]} 39. Kd3 {[%emt 0:00:08]} Bf6 $1 {[%emt 0:00:11]} 40. Bb3 {[%emt 0:02:33]} Kg7 $1 {[%emt 0:00:28]} 41. Rh1 {[%emt 0:30:04]} e6 {[%emt 0:14:51]} 42. Bd1 {[%emt 0:00:00]} exd5 {[%emt 0:03:09]} 43. exd5 {[%emt 0:00:00]} Re8 {[%emt 0:00:09]} 44. Bg4 {[%emt 0:00:00][%mdl 1024] Wit heeft compensatie.} Kg6 {[%emt 0:00:06]} 45. Rf1 {[%emt 0:00:00]} Kg7 {[%emt 0:00:52]} 46. Rf2 {[%emt 0:00:00]} Rh8 {[%emt 0:01:13]} 47. Bf5 {[%emt 0:00:00]} Re8 {[%emt 0:00:40]} 48. Rh2 {[%emt 0:00:00]} Kg8 {[%emt 0:00:49] [#]} ({Zwart heeft voordeel bij.} 48... Ra8 $14) 49. Re2 $1 {[%emt 0:00:00]} Rf8 {[%emt 0:00:15]} ({Voorkom te.} 49... Rxe2 $2 50. Kxe2 Kf8 51. Bc8 Re7+ 52. Nxe7 Kxe7 53. Bxa6 $18) 50. Ke4 {[%emt 0:00:00]} Kg7 {[%emt 0:00:20]} ({Speel niet} 50... Re8+ 51. Kd3 Ra8 (51... Rxe2 $2 52. Kxe2 Kf8 53. Bc8 $18) 52. Rf2 $11) 51. Rh2 {[%emt 0:00:00]} Re8+ {[%emt 0:00:50] Is uitdagender.} 52. Kf3 {[%emt 0:00:00]} Rf8 {[%emt 0:00:27]} 53. Kg4 {[%emt 0:00:00]} Re8 {[%emt 0:00:21]} 54. Rh7+ {[%emt 0:00:00]} Kg8 {[%emt 0:00:11]} 55. Rh6 {[%emt 0:00:00]} Kg7 {[%emt 0:00:05]} 56. Rh5 {[%emt 0:00:00]} Kg8 {[%emt 0:00:36]} 57. Rxg5+ {[%emt 0:00:59]} ({Wit doet er goed aan.} 57. Rh6 $14 Kg7 58. Rh7+ Kg8 59. Rh1) 57... Bxg5 $11 {[%emt 0:00:04]} 58. Kxg5 {[%emt 0:00:04]} Kg7 {[%emt 0:04:53]} ({Vermijd te.} 58... Re3 $2 59. Bc8 Rbe7 60. Nxe7+ Rxe7 61. Bxa6 $18) 59. Bg4 {[%emt 0:00:16]} Rh8 {[%emt 0:01:07]} (59... Kf8 $11 {blijft gelijk.}) 60. Nd4 {[%emt 0:00:27] Ne6+ is een doorslaggevende dreiging.} ({Wit kiest ideaal voor. Wit heeft baat bij.} 60. Bd8 $16 Rxd8 61. Nxd8) 60... Kf8 {[%emt 0:01:21]} 61. Bd8 {[%emt 0:03:27]} Rg8+ {[%emt 0:00:52]} 62. Kf4 {[%emt 0:00:03]} Ke8 {[%emt 0:03:58]} 63. Nc6 {[%emt 0:02:15]} f5 {[%emt 0:02:22]} 64. Bh5+ {[%emt 0:00:29]} Kd7 {[%emt 0:00:44]} 65. Bf6 {[%emt 0:00:48]} (65. Kxf5 Rxd8 66. Nxd8 Kxd8 $19) 65... Rf8 {[%emt 0:03:30]} 66. Be7 {[%emt 0:01:19] Het loperpaar is mooi..} ({Onthoud je van.} 66. Kxf5 $6 Rc7 $16) 66... Rbb8 {[%emt 0:00:06] Fout (0.8)} 67. Bg6 {[%emt 0:00:36] Wit heeft actievere stukken.} (67. Nxb8+ Kxe7 68. Nxa6 Ra8) 67... Ra8 {[%emt 0:00:13] Fout (1.4)} ({Zwart zou moeten proberen} 67... Rfe8 $14) 68. Bxf8 $18 {[%emt 0:01:59]} Rxf8 {[%emt 0:00:03]} 69. Bxf5+ {[%emt 0:00:06]} Kc7 {[%emt 0:00:02]} 70. Kg5 {[%emt 0:00:19]} ({Wit zou moeten proberen} 70. Nd4 Rh8 71. Ne6+ Kb6 72. Kg5) 70... Rg8+ $2 {[%emt 0:00:35][%mdl 8192] [#] Verliest partij (3.4)} (70... Re8 $16) 71. Kf6 $1 {[%emt 0:00:55]} Rg3 {[%emt 0:00:28]} 72. Nd4 {[%emt 0:00:25]} Rxa3 $2 {[%emt 0:00:21] Fout (3.2)} (72... Kd8 73. Kf7 Re3 74. Ne6+ Kd7 75. Ng7+ Kd8) 73. Ke7 {[%emt 0:00:05]} Ra4 {[%emt 0:01:27]} 74. Ne6+ {[%emt 0:00:05]} Kb6 {[%emt 0:00:01]} 75. Kxd6 {[%emt 0:00:04]} Rxb4 {[%emt 0:00:02]} 76. Ke7 {[%emt 0:03:57]} Rb2 {[%emt 0:00:45]} 77. d6 {[%emt 0:00:06]} Rd2 {[%emt 0:00:07]} 78. Nf4 {[%emt 0:00:34]} Rd4 {[%emt 0:01:09]} 79. d7 {[%emt 0:01:09]} a5 {[%emt 0:00:43][%cal Ba6a5,Ba5a4][%mdl 32] EV=14.18. Goes to a3 (dbg))} 80. Be6 {[%emt 0:02:20]} Rxd7+ {[%emt 0:00:14]} 81. Bxd7 {[%emt 0:01:02] Kd6 dreigt fatale mat. Kd6 bedreigt onmiddellijk mat. Kd6 kondigt onafwendbaar mat aan.} Kc5 {[%emt 0:00:06]} 82. Ke6 {[%emt 0:00:28]} a4 {[%emt 0:00:19]} 83. Ke5 {[%emt 0:00:10]} Kc4 {[%emt 0:00:04]} 84. Be6+ {[%emt 0:02:35]} Kc3 {[%emt 0:00:08]} 85. Nd5+ {[%emt 0:00:06]} Kc4 {[%emt 0:01:11]} 86. Nc7+ {[%emt 0:00:51]} Kc3 {[%emt 0:01:05]} 87. Nxb5+ {[%emt 0:01:02]} Kb2 {[%emt 0:00:04]} 88. Kd4 {[%emt 0:00:09]} a3 {[%emt 0:00:03]} 89. Nc3 {[%emt 0:00:08]} Kc2 {[%emt 0:00:02]} 90. Kc4 {[%emt 0:01:07]} Kb2 {[%emt 0:00:04]} 91. Kb4 {[%emt 0:00:08] Bd5 is een beslissende dreiging. Bd5 belooft een doorslaggevend voordeel.} Kc2 {[%emt 0:00:02]} 92. Nb5 {[%emt 0:00:25]} Kb2 {[%emt 0:00:09]} 93. Nxa3 {[%emt 0:00:09] Wit zet mat.} Ka1 {[%emt 0:00:03]} 94. Nc4 {[%emt 0:00:34]} Ka2 {[%emt 0:00:05]} 95. Kc3 {[%emt 0:00:15]} Kb1 {[%emt 0:00:02]} 96. Nd2+ {[%emt 0:00:28]} Ka1 {[%emt 0:00:10]} 97. Bf5 {[%emt 0:00:22]} Ka2 {[%emt 0:00:04]} 98. Nb3 {[%emt 0:00:06]} Ka3 {[%emt 0:00:05]} 99. Bb1 {[%emt 0:00:04]} Ka4 {[%emt 0:00:03]} 100. Nd4 {[%emt 0:00:14]} Ka5 {[%emt 0:00:03]} 101. Kc4 {[%emt 0:00:13]} Kb6 {[%emt 0:00:06]} 102. Nb5 {[%emt 0:00:10]} Kc6 {[%emt 0:00:03]} 103. Bf5 {[%emt 0:00:05]} Kb6 {[%emt 0:00:04]} 104. Bd7 {[%emt 0:01:06]} Ka5 {[%emt 0:00:02]} 105. Nc3 {[%emt 0:00:11]} Kb6 {[%emt 0:00:05]} 106. Nd5+ {[%emt 0:00:05]} Kb7 {[%emt 0:00:06]} 107. Kb5 {[%emt 0:00:07] Blunder waarde: Wit=0.15 (erg precies) /Zwart=0.17 (erg precies) .  Verliest partij:   	---       	Zwart=1      Fout:        	Wit=7      	Zwart=10     Onnauwkeurig:    	Wit=6      	Zwart=6      OK:         	Wit=22     	Zwart=27     Beste:        	Wit=5      	Zwart=2      Sterk:        	Wit=5      	Zwart=2} 1-0

[Event "FIDE Women GP Shimkent 2024"]
[Site "Shimkent"]
[Date "2024.10.30"]
[Round "1.4"]
[White "Munguntuul, Batkhuyag"]
[Black "Tsolakidou, Stavroula"]
[Result "0-1"]
[ECO "C60"]
[WhiteElo "2344"]
[BlackElo "2439"]
[Annotator "TA"]
[PlyCount "130"]
[EventDate "2024.10.11"]
[EventType "tourn"]
[EventCountry "KAZ"]
[SourceTitle "playchess.com"]
[Source "ChessBase"]
[SourceQuality "1"]
[TimeControl "40/5400+30:1800+30"]

{[%evp 29,130,-11,-16,-8,-14,-16,-16,-16,-6,-10,-11,-9,-15,-12,-2,-18,-12,-9,-15,-20,-10,-22,-19,-34,-32,-41,-41,-41,-36,-36,-35,-31,-32,-43,-42,-72,-61,-68,-62,-51,-35,-45,-31,-43,-38,-64,-62,-67,-52,-52,-52,-72,-74,-86,-83,-75,-77,-77,-64,-64,-64,-64,-64,-64,-43,-47,-47,-72,-47,-108,-104,-195,-151,-216,-222,-210,-210,-435,-442,-729,-725,-1132,-1040,-1149,-1031,-2066,-1897,-1840,-1835,-5916,-5766,-9795,-9342,-12629,-29952,-5735,-5624,-29981,-29982,-29982,-29983,-29985,-29986]} 1. e4 {[%emt 0:00:03]} e5 {[%emt 0:00:08]} 2. Nf3 {[%emt 0:00:03]} Nc6 {[%emt 0:00:06]} 3. Bb5 {[%emt 0:00:05]} a6 {[%emt 0:00:06]} 4. Ba4 {[%emt 0:00:05]} Nge7 {[%emt 0:00:13]} 5. O-O {[%emt 0:01:04]} Ng6 {[%emt 0:00:19]} 6. c3 {[%emt 0:00:09] C60: Ruy Lopez: Unusual Black 3rd moves and 3...g6.} d5 {[%emt 0:00:40]} 7. exd5 {[%emt 0:08:40]} Qxd5 {[%emt 0:00:08]} 8. d4 {[%emt 0:00:54]} Bg4 {[%emt 0:00:55]} 9. dxe5 {[%emt 0:06:41]} O-O-O {[%emt 0:02:01]} 10. Qxd5 {[%emt 0:23:11]} Rxd5 {[%emt 0:00:06]} 11. Nbd2 {[%emt 0:00:27]} Ncxe5 {[%emt 0:05:19]} 12. Nxe5 {[%emt 0:00:41]} Nxe5 {[%emt 0:00:34]} 13. Bb3 {[%emt 0:01:17]} Rd8 $146 {[%emt 0:14:01]} ({Predecessor:} 13... Rd7 14. Ne4 Nd3 15. f3 Bf5 16. Rb1 Bxe4 17. fxe4 Bc5+ 18. Kh1 Nf2+ 19. Kg1 Nxe4+ {0-1 Kobalia,M (2590)-Sadhwani,R (2619) Titled Tuesday intern op 21st Jun Early blitz 2022 (7)}) 14. Ne4 {[%emt 0:08:18]} f6 {[%emt 0:05:55]} 15. Be3 {[%emt 0:02:31]} Nd3 {[%emt 0:02:47]} 16. f3 {[%emt 0:01:43]} Bf5 {[%emt 0:02:11]} 17. Rad1 {[%emt 0:03:03]} Be7 {[%emt 0:16:51]} 18. Rd2 {[%emt 0:01:59]} Bxe4 {[%emt 0:09:28]} 19. fxe4 {[%emt 0:00:07]} Nc5 {[%emt 0:00:24]} 20. Bc2 {[%emt 0:07:00]} Rxd2 {[%emt 0:01:13]} 21. Bxd2 {[%emt 0:00:02]} Bd6 {[%emt 0:06:42]} 22. Re1 {[%emt 0:02:04]} h5 {[%emt 0:02:06]} 23. g3 {[%emt 0:07:44]} Nd7 {[%emt 0:02:47]} 24. Kg2 {[%emt 0:04:59]} h4 {[%emt 0:02:54]} 25. Bf4 {[%emt 0:02:01]} Ne5 {[%emt 0:03:15]} 26. Bxe5 {[%emt 0:02:12]} Bxe5 {[%emt 0:00:04]} 27. Rd1 {[%emt 0:00:19]} hxg3 {[%emt 0:01:34]} 28. hxg3 {[%emt 0:00:03]} c6 {[%emt 0:01:59]} 29. Bb3 {[%emt 0:03:44]} Kc7 {[%emt 0:00:24]} 30. Be6 {[%emt 0:00:20]} Bd6 {[%emt 0:00:32]} 31. Bg4 {[%emt 0:00:25]} b5 {[%emt 0:01:20]} 32. b3 {[%emt 0:02:57]} g5 {[%emt 0:00:31]} 33. Be2 {[%emt 0:01:31]} Re8 {[%emt 0:03:09]} 34. Kf3 {[%emt 0:01:57]} Bc5 {[%emt 0:05:34]} 35. Bd3 {[%emt 0:00:11]} Rd8 {[%emt 0:02:35]} 36. Be2 {[%emt 0:06:08]} Rh8 {[%emt 0:00:47]} 37. Kg2 {[%emt 0:01:14]} Re8 {[%emt 0:03:43]} 38. Bd3 {[%emt 0:01:39]} a5 {[%emt 0:00:35]} 39. Kf3 {[%emt 0:00:21]} Bd6 {[%emt 0:01:24]} 40. Bc2 {[%emt 0:01:32]} Be5 {[%emt 0:00:16]} 41. Rd3 {[%emt 0:05:54]} Rh8 {[%emt 0:05:00]} 42. Kg2 {[%emt 0:00:39]} Kb6 {[%emt 0:00:27]} 43. Bd1 {[%emt 0:02:36]} Kc5 {[%emt 0:01:02]} 44. Bg4 {[%emt 0:03:53]} Ra8 {[%emt 0:01:48]} 45. Be6 {[%emt 0:02:17]} Re8 {[%emt 0:06:14]} 46. Bg4 {[%emt 0:04:08]} a4 {[%emt 0:00:59]} 47. b4+ {[%emt 0:02:06]} Kb6 $1 {[%emt 0:00:15]} ({Avoid the trap} 47... Kc4 $2 48. Be2 Bxc3 49. Rd8+ Kxb4 50. Rxe8 $18) 48. Kf2 {[%emt 0:00:53]} Re7 {[%emt 0:01:00]} 49. Be2 {[%emt 0:02:05]} ({White should try} 49. Bf5 $15) 49... Rc7 {[%emt 0:01:35]} 50. Ke1 {[%emt 0:07:16]} (50. Bh5 $17) 50... Rh7 $19 {[%emt 0:01:23]} 51. Kd2 {[%emt 0:00:45]} (51. Re3 $17 {was worth a try.}) 51... Rh1 $19 {[%emt 0:01:55]} 52. Bd1 {[%emt 0:00:45]} Rg1 {[%emt 0:07:45]} 53. a3 $2 {[%emt 0:03:25]} (53. g4 {was the only defense.}) 53... Bxg3 $19 {[%emt 0:00:34]} 54. c4 {[%emt 0:00:12]} (54. Rf3 $142 Be5 55. Ke2) 54... bxc4 $19 {[%emt 0:01:06]} 55. Rd7 {[%emt 0:00:03]} Be5 {[%emt 0:01:27]} 56. Bxa4 {[%emt 0:00:02]} Ra1 {[%emt 0:00:57]} 57. Bc2 {[%emt 0:01:39]} Rxa3 {[%emt 0:00:06]} 58. Rg7 {[%emt 0:00:15]} Rg3 {[%emt 0:01:11]} 59. Rf7 {[%emt 0:00:28]} g4 {[%emt 0:00:30]} 60. Bd1 {[%emt 0:00:10]} Rd3+ {[%emt 0:00:45]} 61. Kc2 {[%emt 0:00:22]} g3 {[%emt 0:00:19]} 62. Rg7 {[%emt 0:00:22]} Bf4 {[%emt 0:01:49]} 63. Rg4 {[%emt 0:00:11]} Rd2+ {[%emt 0:00:41]} 64. Kc1 {[%emt 0:00:01]} g2 {[%emt 0:00:28]} 65. Rxf4 {[%emt 0:00:12]} Rxd1+ {[%emt 0:00:05]} (65... g1=R $2 {too greedy.} 66. Kxd2 Kb5 67. Rxf6 $18) 0-1